bitfinex-derivatives/quotes_SOLF0:USTF0_20250606
["timestamp","ask_amount","ask_price","bid_price","bid_amount"]
[1749177304670,6.09739034,145.33,145.32,0.04530517]
[1749177304869,10.82297231,145.33,145.32,0.04530517]
[1749177305478,10.82297142,145.33,145.32,0.04530517]
[1749177305774,6.09739034,145.33,145.32,0.04530517]
[1749177310385,0.04667619,145.34,145.32,0.04530517]
[1749177310977,6.05837539,145.33,145.32,0.04530517]
[1749177311180,0.04667619,145.34,145.33,6.8784]
[1749177314596,0.04667619,145.34,145.32,0.04530517]
[1749177318095,0.04667619,145.34,145.32,6.92420517]
[1749177318290,0.04667619,145.34,145.32,0.04530517]
[1749177319793,0.04667619,145.34,145.33,6.8784]
[1749177324797,0.04667619,145.34,145.33,11.85311341]
[1749177324999,37.98,145.38,145.36,6.877]
[1749177325497,6.8754,145.4,145.36,6.877]
[1749177326200,0.05071073,145.39,145.37,6.92102277]
[1749177327196,0.05071073,145.39,145.38,6.8761]
[1749177336206,0.05071073,145.39,145.38,11.85081341]
[1749177336401,37.42,145.44,145.38,4.97471341]
[1749177336907,37.42,145.44,145.41,6.8743]
[1749177337404,44.33942202,145.44,145.41,6.92564898]
[1749177339810,37.46622202,145.44,145.41,6.92564898]
[1749177340106,37.46622202,145.44,145.42,6.8741]
[1749177340805,37.46622202,145.44,145.41,6.92584898]
[1749177341006,44.33942202,145.44,145.41,6.92584898]
[1749177342507,37.46622202,145.44,145.41,0.05134898]
[1749177342808,11.02504209,145.43,145.35,42.39471341]
[1749177343005,6.8756,145.39,145.36,6.8769]
[1749177343208,6.8756,145.39,145.34,4.97471341]
[1749177343413,37.42,145.4,145.34,4.97471341]
[1749177343712,0.04628357,145.38,145.36,0.04491171]
[1749177345010,12.93162061,145.37,145.36,0.04491171]
[1749177345206,6.8765,145.37,145.36,0.04491171]
[1749177348917,6.92248357,145.38,145.36,0.04491171]
[1749177349315,0.04628357,145.38,145.36,0.04491171]
[1749177349518,6.8765,145.37,145.36,0.04491171]
[1749177351318,0.04628357,145.38,145.36,0.04491171]
[1749177353215,6.92238357,145.38,145.36,0.04491171]
[1749177356422,6.8765,145.37,145.36,0.04491171]
[1749177356726,12.9269506,145.37,145.36,0.04491171]
[1749177357621,6.0504506,145.37,145.36,0.04491171]
[1749177358927,6.92248357,145.38,145.36,0.04491171]
[1749177360727,6.04992633,145.37,145.36,0.04491171]
[1749177360929,6.04992633,145.37,145.36,6.92191171]
[1749177361128,0.04628357,145.38,145.36,6.92191171]
[1749177362428,0.04628357,145.38,145.37,6.8765]
[1749177362630,0.04628357,145.38,145.37,11.85121341]
[1749177363828,6.05388292,145.42,145.37,4.97471341]
[1749177364029,36.92,145.43,145.37,4.97471341]
[1749177364030,36.92,145.43,145.39,4.97471341]
[1749177364230,6.05368976,145.42,145.39,4.97471341]
[1749177364525,36.92,145.43,145.39,4.97471341]
[1749177364730,36.92,145.43,145.41,6.8747]
[1749177364926,6.05360375,145.42,145.41,11.90046062]
[1749177365131,0.05180504,145.43,145.41,5.02576062]
[1749177365425,0.05180504,145.43,145.42,6.8742]
[1749177365629,6.10400771,145.43,145.42,6.8742]
[1749177366631,0.05180504,145.43,145.42,6.8742]
[1749177367428,0.05180504,145.43,145.41,11.90026062]
[1749177367832,0.05180504,145.43,145.41,5.02576062]
[1749177368335,0.05180504,145.43,145.41,0.05104721]
[1749177368529,0.05180504,145.43,145.41,5.02576062]
[1749177368831,0.05180504,145.43,145.41,0.05104721]
[1749177369934,0.05180504,145.43,145.41,6.92564721]
[1749177370132,0.05180504,145.43,145.41,0.05104721]
[1749177370634,0.05180504,145.43,145.41,5.02576062]
[1749177370934,0.05180504,145.43,145.41,11.90006062]
[1749177371827,0.05180504,145.43,145.41,5.02576062]
[1749177372631,6.92560504,145.43,145.41,5.02576062]
[1749177373038,0.05180504,145.43,145.41,5.02576062]
[1749177373939,6.92580504,145.43,145.41,5.02576062]
[1749177374632,6.8742,145.42,145.41,0.05104721]
[1749177374839,12.94016722,145.42,145.41,0.05104721]
[1749177375136,6.8742,145.42,145.41,0.05104721]
[1749177375636,6.92570504,145.43,145.41,0.05104721]
[1749177376028,6.0657078,145.42,145.41,0.05104721]
[1749177376229,6.92570504,145.43,145.41,0.05104721]
[1749177376533,12.93990053,145.42,145.41,0.05104721]
[1749177376933,12.93990053,145.42,145.36,11.85141341]
[1749177376934,6.8756,145.4,145.36,11.85141341]
[1749177377733,6.8756,145.4,145.36,6.8767]
[1749177377940,6.92553924,145.39,145.37,0.04638776]
[1749177378235,0.04983924,145.39,145.37,0.04638776]
[1749177379434,6.92553924,145.39,145.37,0.04638776]
[1749177379839,0.04983924,145.39,145.37,0.04638776]
[1749177380836,0.04983924,145.39,145.37,6.92288776]
[1749177381344,6.92543924,145.39,145.37,0.04638776]
[1749177381949,0.04983924,145.39,145.37,0.04638776]
[1749177382447,6.92573924,145.39,145.37,0.04638776]
[1749177384846,0.04983924,145.39,145.37,0.04638776]
[1749177385348,0.04983924,145.39,145.37,6.92288776]
[1749177385549,0.04983924,145.39,145.37,0.04638776]
[1749177387452,0.04983924,145.39,145.37,6.92268776]
[1749177389056,0.04983924,145.39,145.37,0.04638776]
[1749177391956,0.04983924,145.39,145.37,6.92288776]
[1749177392559,0.04983924,145.39,145.37,0.04638776]
[1749177393061,6.92583924,145.39,145.37,0.04638776]
[1749177393264,0.04983924,145.39,145.37,0.04638776]
[1749177397861,6.0558139,145.38,145.37,0.04638776]
[1749177398056,6.92543924,145.39,145.37,0.04638776]
[1749177398557,6.05613368,145.38,145.37,0.04638776]
[1749177399462,6.92543924,145.39,145.37,0.04638776]
[1749177399859,12.93213941,145.38,145.37,0.04638776]
[1749177400064,54.59691144,145.38,145.37,0.04638776]
[1749177401161,49.83213941,145.38,145.37,0.04638776]
[1749177401361,54.59667862,145.38,145.37,0.04638776]
[1749177402164,49.83213941,145.38,145.37,0.04638776]
[1749177402466,54.58568297,145.38,145.37,0.04638776]
[1749177402867,49.83213941,145.38,145.37,0.04638776]
[1749177403060,54.58568454,145.38,145.37,0.04638776]
[1749177403260,57.39000758,145.38,145.37,0.04638776]
[1749177403862,57.39034279,145.38,145.37,0.04638776]
[1749177404069,54.58608949,145.38,145.37,0.04638776]
[1749177404368,52.63634893,145.38,145.37,0.04638776]
[1749177404568,57.39028625,145.38,145.37,0.04638776]
[1749177405668,54.58608303,145.38,145.37,0.04638776]
[1749177405971,54.58537506,145.38,145.37,0.04638776]
[1749177407971,57.38242884,145.38,145.37,0.04638776]
[1749177408167,57.38128529,145.38,145.37,0.04638776]
[1749177408473,49.83213941,145.38,145.37,0.04638776]
[1749177409674,54.57818234,145.38,145.37,0.04638776]
[1749177409876,6.8776,145.35,145.32,6.8787]
[1749177410064,4.746155,145.37,145.31,41.87471341]
[1749177410373,12.92503727,145.36,145.32,6.8789]
[1749177410670,36.9,145.38,145.32,6.8789]
[1749177410976,0.04946048,145.36,145.34,0.04924517]
[1749177411768,6.8775,145.35,145.34,0.04924517]
[1749177412973,6.92666048,145.36,145.34,0.04924517]
[1749177413276,6.04925451,145.35,145.34,0.04924517]
[1749177414171,6.04925451,145.35,145.34,6.92724517]
[1749177414474,0.04946048,145.36,145.34,0.04924517]
[1749177414671,0.04946048,145.36,145.34,6.92674517]
[1749177415376,0.04946048,145.36,145.35,10.055906]
[1749177415674,0.04946048,145.36,145.35,3.178406]
[1749177416674,0.04946048,145.36,145.35,10.055906]
[1749177417176,0.04946048,145.36,145.35,6.8775]
[1749177418067,6.41436831,145.4,145.35,4.96656249]
[1749177418269,36.86,145.41,145.38,4.96656249]
[1749177418472,6.41436831,145.44,145.4,4.96656249]
[1749177418473,43.27436831,145.44,145.4,4.96656249]
[1749177418673,20.01681181,145.43,145.38,11.84226249]
[1749177418879,13.6024435,145.42,145.38,4.96656249]
[1749177419068,17.68073176,145.41,145.38,4.96656249]
[1749177419265,6.05524933,145.4,145.39,0.04443945]
[1749177421170,49.79034933,145.4,145.39,0.04443945]
[1749177421376,54.54399659,145.4,145.39,0.04443945]
[1749177421674,57.36131861,145.4,145.39,0.04443945]
[1749177421875,54.54634344,145.4,145.39,0.04443945]
[1749177422068,47.67124344,145.4,145.39,0.04443945]
[1749177422275,47.67121675,145.4,145.39,0.04443945]
[1749177423278,54.54631675,145.4,145.39,0.04443945]
[1749177423579,54.56671941,145.4,145.39,0.04443945]
[1749177424081,57.38560219,145.4,145.39,0.04443945]
[1749177424577,47.69161941,145.4,145.39,0.04443945]
[1749177424772,47.69922229,145.4,145.39,0.04443945]
[1749177425276,42.91524933,145.4,145.39,0.04443945]
[1749177425474,47.69906918,145.4,145.39,0.04443945]
[1749177425675,54.57416918,145.4,145.39,0.04443945]
[1749177426271,6.8758,145.39,145.35,7.16946249]
[1749177426473,6.05524933,145.38,145.35,7.16946249]
[1749177426676,6.05524933,145.37,145.35,7.16946249]
[1749177426875,6.8758,145.39,145.35,11.84376249]
[1749177427080,13.66568542,145.38,145.33,7.27506249]
[1749177427277,10.90159345,145.37,145.34,0.04418028]
[1749177427485,6.06870374,145.36,145.34,0.04418028]
[1749177427681,6.06870374,145.35,145.34,0.04418028]
[1749177428783,6.06915796,145.35,145.34,0.04418028]
[1749177429479,12.94665796,145.35,145.34,0.04418028]
[1749177430778,12.94665796,145.35,145.31,6.879]
[1749177430779,10.8434974,145.35,145.3,9.0651]
[1749177431081,6.8784,145.33,145.3,9.0651]
[1749177431781,2.80374809,145.35,145.31,6.8793]
[1749177432082,0.04921508,145.33,145.3,2.23217208]
[1749177432282,0.04921508,145.33,145.31,6.8793]
[1749177433977,0.04921508,145.33,145.3,14.07843457]
[1749177434172,0.04921508,145.33,145.3,7.19873457]
[1749177434679,42.91421864,145.32,145.3,0.04677208]
[1749177434880,6.05421864,145.31,145.3,0.04677208]
[1749177437877,12.93361864,145.31,145.3,0.04677208]
[1749177438578,15.72115551,145.31,145.23,36.86]
[1749177438783,4.96656249,145.29,145.22,4.96656249]
[1749177438980,6.05421864,145.28,145.22,4.96656249]
[1749177439181,4.96656249,145.29,145.22,4.96656249]
[1749177439384,13.03563714,145.28,145.24,6.8827]
[1749177439584,0.04614995,145.27,145.25,0.05093315]
[1749177439979,6.8818,145.26,145.25,0.05093315]
[1749177441685,11.89411244,145.27,145.25,0.05093315]
[1749177442779,5.01271244,145.27,145.25,0.05093315]
[1749177443180,6.13272286,145.26,145.25,0.05093315]
[1749177443587,6.13272286,145.26,145.22,6.8835]
[1749177443784,4.96656249,145.27,145.22,6.8835]
[1749177444086,6.1279342,145.26,145.22,6.8835]
[1749177444281,6.882,145.26,145.22,6.8835]
[1749177444587,0.05069572,145.25,145.22,6.8835]
[1749177445690,0.05069572,145.25,145.23,6.8831]
[1749177446081,0.05069572,145.25,145.2,9.53226249]
[1749177446082,0.05069572,145.25,145.22,6.8833]
[1749177446290,0.05069572,145.25,145.2,9.53226249]
[1749177446787,0.05069572,145.25,145.22,6.8834]
[1749177447588,6.93309572,145.25,145.21,6.8839]
[1749177448085,11.89965821,145.25,145.21,6.8839]
[1749177448285,36.82,145.24,145.21,6.8839]
[1749177448881,43.7027,145.24,145.2,9.2027]
[1749177449084,36.82,145.24,145.2,2.3183]
[1749177449290,36.82,145.24,145.18,4.96656249]
[1749177449481,0.04948236,145.22,145.21,6.8841]
[1749177452890,36.82,145.24,145.23,6.8832]
[1749177453091,7.25346249,145.29,145.23,6.8832]
[1749177453092,36.82,145.27,145.23,6.8832]
[1749177453295,6.8821,145.26,145.22,4.96656249]
[1749177453884,0.04967084,145.25,145.23,0.04599291]
[1749177456995,36.82,145.36,145.24,9.9440707]
[1749177457190,6.08951763,145.35,145.29,4.97203535]
[1749177457390,6.8783,145.34,145.3,6.8798]
[1749177457897,0.05149958,145.33,145.31,5.01725392]
[1749177459795,6.92999958,145.33,145.31,5.01725392]
[1749177459993,0.05149958,145.33,145.31,5.01725392]
[1749177460194,0.05149958,145.33,145.31,0.04521857]
[1749177461294,0.05149958,145.33,145.31,5.01725392]
[1749177463601,6.93009958,145.33,145.31,5.01725392]
[1749177464009,0.05149958,145.33,145.31,0.04521857]
[1749177465798,6.8789,145.32,145.31,0.04521857]
[1749177469106,43.6189,145.32,145.31,0.04521857]
[1749177470806,49.74949556,145.32,145.31,0.04521857]
[1749177471601,47.84263091,145.32,145.24,41.79203535]
[1749177471806,6.13059556,145.31,145.24,41.79203535]
[1749177472005,6.13059556,145.3,145.24,41.79203535]
[1749177472306,43.82163535,145.32,145.24,4.97203535]
[1749177472608,6.8808,145.28,145.27,0.05282125]
[1749177475902,13.01547157,145.28,145.27,0.05282125]
[1749177476108,6.8808,145.28,145.27,0.05282125]
[1749177477906,13.01834385,145.28,145.27,0.05282125]
[1749177478408,6.8808,145.28,145.27,0.05282125]
[1749177479310,13.0180932,145.28,145.27,0.05282125]
[1749177479512,6.8808,145.28,145.27,0.05282125]
[1749177480212,6.92849122,145.29,145.27,0.05282125]
[1749177481514,6.8808,145.28,145.27,0.05282125]
[1749177482510,0.04799122,145.29,145.27,0.05282125]
[1749177484711,6.92859122,145.29,145.27,0.05282125]
[1749177486518,13.02082009,145.28,145.27,0.05282125]
[1749177486724,47.85205544,145.28,145.21,41.71203535]
[1749177486919,6.14002009,145.27,145.21,41.71203535]
[1749177487216,6.14002009,145.26,145.21,41.71203535]
[1749177487410,36.74,145.28,145.23,4.97203535]
[1749177487809,0.04794561,145.27,145.23,4.97203535]
[1749177488213,0.04794561,145.27,145.25,11.85393535]
[1749177488815,0.04794561,145.27,145.26,6.8818]
[1749177490925,0.04794561,145.27,145.25,11.85403535]
[1749177492831,0.04794561,145.27,145.26,6.8818]
[1749177496840,0.04794561,145.27,145.25,6.8821]
[1749177497243,0.04794561,145.27,145.24,4.97203535]
[1749177497741,0.04794561,145.27,145.26,6.8818]
[1749177498545,0.04794561,145.27,145.26,11.85383535]
[1749177500039,6.20225135,145.27,145.26,11.85383535]
[1749177500538,0.04794561,145.27,145.26,11.85383535]
[1749177500842,6.2039143,145.27,145.26,11.85383535]
[1749177501943,6.20588907,145.27,145.26,11.85383535]
[1749177502346,0.04794561,145.27,145.26,11.85383535]
[1749177502547,6.20590075,145.27,145.26,11.85383535]
[1749177502746,0.04794561,145.27,145.26,11.85383535]
[1749177502947,6.20620882,145.27,145.26,11.85383535]
[1749177503149,6.20620882,145.27,145.26,6.8818]
[1749177503650,0.04794561,145.27,145.26,6.8818]
[1749177503951,6.207488,145.27,145.26,6.8818]
[1749177505049,15.77388138,145.33,145.26,6.8818]
[1749177505050,6.41056274,145.33,145.3,6.8799]
[1749177505248,6.41056274,145.33,145.29,4.97203535]
[1749177505249,4.68467785,145.32,145.29,4.97203535]
[1749177505449,6.41056274,145.33,145.29,4.97203535]
[1749177505649,4.68436232,145.32,145.3,6.8798]
[1749177505850,0.04436789,145.32,145.3,6.92344535]
[1749177507554,0.04436789,145.32,145.3,0.04364535]
[1749177510651,4.70714538,145.31,145.3,0.04364535]
[1749177510857,4.70719781,145.31,145.3,0.04364535]
[1749177511154,4.70719792,145.31,145.3,0.04364535]
[1749177511651,4.70719792,145.31,145.24,4.97203535]
[1749177511846,47.79800535,145.3,145.24,4.97203535]
[1749177512052,6.8807,145.29,145.25,6.8822]
[1749177512251,43.09080743,145.3,145.24,4.97203535]
[1749177512451,36.66,145.3,145.24,4.97203535]
[1749177512655,0.04493825,145.28,145.24,4.97203535]
[1749177513057,0.04493825,145.28,145.25,6.8819]
[1749177513854,6.43080743,145.31,145.26,4.97203535]
[1749177514053,43.09080743,145.33,145.29,4.97203535]
[1749177514860,36.66,145.33,145.3,0.04390902]
[1749177515157,0.04688934,145.32,145.3,0.04390902]
[1749177515754,6.92588934,145.32,145.3,0.04390902]
[1749177515953,0.04688934,145.32,145.3,0.04390902]
[1749177516859,6.20246529,145.31,145.3,0.04390902]
[1749177517855,6.20246529,145.31,145.3,6.92380902]
[1749177519456,6.20246529,145.31,145.3,0.04390902]
[1749177526262,6.20246529,145.31,145.3,6.92380902]
[1749177528064,0.04688934,145.32,145.31,6.8794]
[1749177528268,6.25291858,145.32,145.31,11.85143535]
[1749177529667,0.04688934,145.32,145.31,11.85143535]
[1749177531164,36.66,145.36,145.34,6.8776]
[1749177531368,6.19894835,145.35,145.34,11.84963535]
[1749177532971,6.19894835,145.35,145.34,4.97203535]
[1749177537176,0.04598356,145.36,145.34,4.97203535]
[1749177537376,0.04598356,145.36,145.35,6.8775]
[1749177537673,6.24436257,145.36,145.34,4.97203535]
[1749177537974,0.04598356,145.36,145.34,4.97203535]
[1749177538171,6.19779133,145.35,145.34,11.84973535]
[1749177538372,0.04598356,145.36,145.34,4.97203535]
[1749177538769,0.04598356,145.36,145.35,6.8775]
[1749177541180,43.01080743,145.42,145.35,36.58]
[1749177541376,6.19412973,145.41,145.4,4.97203535]
[1749177542184,0.0502711,145.42,145.4,4.97203535]
[1749177542680,6.9244711,145.42,145.4,4.97203535]
[1749177543175,6.18305536,145.41,145.39,0.04956988]
[1749177543371,0.0502711,145.42,145.39,0.04956988]
[1749177543577,6.18403289,145.41,145.39,0.04956988]
[1749177543777,6.8751,145.41,145.39,0.04956988]
[1749177545374,0.0502711,145.42,145.39,0.04956988]
[1749177546081,6.9244711,145.42,145.39,0.04956988]
[1749177546278,0.0502711,145.42,145.39,0.04956988]
[1749177546478,0.0502711,145.42,145.4,11.84713535]
[1749177546885,0.0502711,145.42,145.41,6.8746]
[1749177548978,0.0502711,145.42,145.41,11.84663535]
[1749177553082,36.56,145.48,145.45,6.8726]
[1749177553286,2.1869,145.5,145.47,4.97203535]
[1749177553492,6.17056617,145.5,145.47,4.97203535]
[1749177553789,6.17056617,145.5,145.47,11.84353535]
[1749177553982,6.21993378,145.5,145.47,11.88846262]
[1749177554184,0.04936761,145.5,145.47,5.01696262]
[1749177554391,6.92016761,145.5,145.47,5.01696262]
[1749177554891,6.92016761,145.5,145.47,11.88876262]
[1749177555688,0.04936761,145.5,145.48,6.8712]
[1749177556799,0.04936761,145.5,145.47,5.01696262]
[1749177556800,0.04936761,145.5,145.47,11.88876262]
[1749177560796,0.04936761,145.5,145.47,6.91672727]
[1749177561092,0.04936761,145.5,145.47,0.04492727]
[1749177561290,6.22335096,145.5,145.47,0.04492727]
[1749177561490,6.8709,145.49,145.47,0.04492727]
[1749177563598,0.04936761,145.5,145.47,0.04492727]
[1749177564701,0.04936761,145.5,145.47,6.91662727]
[1749177567904,6.91986761,145.5,145.47,0.04492727]
[1749177569807,6.91986761,145.5,145.47,6.91662727]
[1749177570303,6.91986761,145.5,145.47,0.04492727]
[1749177571812,6.91986761,145.5,145.47,6.91672727]
[1749177573705,6.8709,145.49,145.47,0.04492727]
[1749177576014,0.04936761,145.5,145.47,5.01696262]
[1749177576409,0.04936761,145.5,145.48,6.8713]
[1749177576611,0.04936761,145.5,145.49,4.97203535]
[1749177577007,0.04936761,145.5,145.49,11.84293535]
[1749177578015,6.17551996,145.53,145.49,4.97203535]
[1749177578313,8.53684603,145.58,145.52,4.97203535]
[1749177578314,6.8669,145.58,145.52,4.97203535]
[1749177578515,6.8669,145.58,145.55,4.97203535]
[1749177578814,11.1666,145.59,145.55,4.97203535]
[1749177579314,0.04526557,145.58,145.56,0.05003373]
[1749177579812,0.04526557,145.58,145.57,11.83913535]
[1749177581017,0.04526557,145.58,145.57,4.97203535]
[1749177582012,0.04526557,145.58,145.57,11.83913535]
[1749177583015,0.04526557,145.58,145.57,4.97203535]
[1749177583504,0.04526557,145.58,145.57,11.83913535]
[1749177584714,2.2816,145.64,145.57,4.97203535]
[1749177584913,6.1584923,145.63,145.61,4.97203535]
[1749177585210,4.85716526,145.65,145.62,6.8647]
[1749177585413,6.15344011,145.64,145.62,6.8647]
[1749177585609,6.15344011,145.63,145.62,6.8647]
[1749177585813,0.04571727,145.64,145.62,6.91069414]
[1749177586010,0.04571727,145.64,145.63,11.83633535]
[1749177586210,6.19911533,145.64,145.63,4.97203535]
[1749177586410,0.04571727,145.64,145.63,4.97203535]
[1749177586606,6.19560222,145.64,145.63,4.97203535]
[1749177586812,6.1956094,145.64,145.63,4.97203535]
[1749177587218,6.19253688,145.64,145.62,11.88232949]
[1749177587528,0.04571727,145.64,145.62,11.88232949]
[1749177587910,0.04571727,145.64,145.62,5.01802949]
[1749177588417,0.04571727,145.64,145.62,11.88272949]
[1749177589417,42.79003244,145.69,145.62,5.01802949]
[1749177589617,6.15805822,145.68,145.67,4.97203535]
[1749177589816,438.43003244,145.72,145.67,4.97203535]
[1749177590024,6.37003244,145.75,145.7,4.97203535]
[1749177590215,6.37003244,145.78,145.74,9.9440707]
[1749177590518,6.8583,145.76,145.75,0.0440984]
[1749177590716,11.078841,145.76,145.74,0.04745844]
[1749177590923,6.10680565,145.75,145.68,4.97203535]
[1749177591218,6.10680565,145.74,145.68,4.97203535]
[1749177591412,42.44680565,145.73,145.68,4.97203535]
[1749177591719,36.34,145.73,145.68,4.97203535]
[1749177592014,6.90794827,145.72,145.69,0.05058293]
[1749177592220,6.90794827,145.72,145.69,5.02261828]
[1749177593121,6.8606,145.71,145.69,0.05058293]
[1749177593521,6.861,145.7,145.69,0.05058293]
[1749177594616,0.04784827,145.72,145.69,0.05058293]
[1749177595223,6.90794827,145.72,145.69,0.05058293]
[1749177595624,6.8605,145.71,145.69,0.05058293]
[1749177596525,6.90794827,145.72,145.69,0.05058293]
[1749177597021,0.04784827,145.72,145.69,0.05058293]
[1749177597421,6.90804827,145.72,145.69,0.05058293]
[1749177597621,0.04784827,145.72,145.69,0.05058293]
[1749177598127,6.8609,145.71,145.69,0.05058293]
[1749177598523,0.04784827,145.72,145.69,0.05058293]
[1749177599224,6.861,145.7,145.69,0.05058293]
[1749177599423,0.04784827,145.72,145.69,0.05058293]
[1749177600332,6.861,145.7,145.69,0.05058293]
[1749177600623,4.97203535,145.71,145.65,4.97203535]
[1749177600828,7.11783535,145.71,145.65,4.97203535]
[1749177601130,7.11783535,145.71,145.64,36.42]
[1749177601720,0.04800069,145.69,145.66,0.04847376]
[1749177601920,41.34003604,145.69,145.66,0.04847376]
[1749177603332,6.8624,145.67,145.66,0.04847376]
[1749177604835,36.36800069,145.69,145.66,0.04847376]
[1749177606033,43.22950069,145.69,145.66,0.04847376]
[1749177606932,6.8624,145.67,145.66,0.04847376]
[1749177607137,11.83443535,145.67,145.66,0.04847376]
[1749177607836,6.8634,145.65,145.6,4.97203535]
[1749177608027,11.83543535,145.65,145.58,40.846]
[1749177608227,43.1834,145.65,145.6,6.8653]
[1749177608633,43.1834,145.65,145.59,7.07253535]
[1749177608837,0.04818064,145.63,145.61,6.91763016]
[1749177609137,0.04818064,145.63,145.61,5.02476551]
[1749177609435,0.04818064,145.63,145.62,6.8647]
[1749177613628,36.32,145.68,145.65,6.8632]
[1749177613835,36.32,145.68,145.64,4.97203535]
[1749177614534,43.182,145.68,145.64,11.83543535]
[1749177614744,0.04948706,145.67,145.65,0.04958447]
[1749177616040,0.04948706,145.67,145.65,6.91288447]
[1749177617328,0.04948706,145.67,145.65,0.04958447]
[1749177618337,0.04948706,145.67,145.65,6.91258447]
[1749177619540,0.04948706,145.67,145.65,0.04958447]
[1749177620239,11.06008414,145.66,145.65,0.04958447]
[1749177620640,11.06008525,145.66,145.65,0.04958447]
[1749177620834,6.1288443,145.66,145.65,0.04958447]
[1749177621033,0.04948706,145.67,145.65,0.04958447]
[1749177621232,6.13448074,145.66,145.65,0.04958447]
[1749177622940,6.13448074,145.66,145.65,6.91288447]
[1749177623135,6.13448074,145.66,145.65,0.04958447]
[1749177624340,6.13448074,145.66,145.65,6.91288447]
[1749177624639,6.30953346,145.73,145.65,5.02161982]
[1749177624937,4.93896434,145.72,145.7,4.97203535]
[1749177625143,4.9389642,145.71,145.7,4.97203535]
[1749177625345,4.9389642,145.71,145.7,11.83293535]
[1749177625540,0.04931227,145.72,145.7,11.83293535]
[1749177625740,0.04931227,145.72,145.7,4.97203535]
[1749177625938,0.04931227,145.72,145.71,6.8605]
[1749177626542,0.04931227,145.72,145.7,11.83283535]
[1749177628438,0.04931227,145.72,145.7,6.8608]
[1749177629443,0.04931227,145.72,145.69,11.87830048]
[1749177630546,0.04931227,145.72,145.69,6.90626513]
[1749177630747,11.75009268,145.71,145.69,0.04496513]
[1749177630943,6.8608,145.71,145.69,0.04496513]
[1749177631247,0.04931227,145.72,145.69,0.04496513]
[1749177631645,6.90961227,145.72,145.69,0.04496513]
[1749177632838,0.04931227,145.72,145.69,0.04496513]
[1749177634548,6.8606,145.71,145.69,0.04496513]
[1749177635147,6.90951227,145.72,145.69,0.04496513]
[1749177636050,6.8606,145.71,145.69,0.04496513]
[1749177638250,6.90941227,145.72,145.69,0.04496513]
[1749177638554,0.04931227,145.72,145.7,4.97203535]
[1749177638754,0.04931227,145.72,145.7,11.83293535]
[1749177643257,0.04931227,145.72,145.7,4.97203535]
[1749177645159,0.04931227,145.72,145.7,11.83283535]
[1749177645452,0.04931227,145.72,145.7,4.97203535]
[1749177645651,0.04931227,145.72,145.71,6.8605]
[1749177645853,43.1179,145.77,145.7,4.97203535]
[1749177646060,36.26,145.77,145.74,4.97203535]
[1749177646261,6.8572,145.79,145.75,6.8583]
[1749177646457,38.4331,145.8,145.74,4.97203535]
[1749177646761,0.0483531,145.78,145.76,5.01654151]
[1749177647060,20.65,145.93,145.76,5.01654151]
[1749177647262,431.44,145.84,145.78,4.97203535]
[1749177647558,6.8554,145.82,145.78,11.82893535]
[1749177647958,431.44,145.84,145.78,4.97203535]
[1749177648155,13.8147872,145.83,145.81,4.97203535]
[1749177648356,0.05034748,145.82,145.8,0.05212895]
[1749177648658,0.04422659,145.82,145.8,0.05220972]
[1749177649361,0.04422659,145.82,145.8,5.02424507]
[1749177649862,0.04422659,145.82,145.81,6.8558]
[1749177650355,43.1133,145.87,145.82,6.8549]
[1749177650563,43.1133,145.87,145.83,4.97203535]
[1749177651059,6.8535,145.86,145.83,4.97203535]
[1749177651559,6.8535,145.86,145.83,11.87463844]
[1749177651560,0.04404357,145.86,145.83,11.87463844]
[1749177651757,0.04404357,145.86,145.83,5.01993844]
[1749177652752,0.04404357,145.86,145.83,0.04790309]
[1749177653360,0.04404357,145.86,145.84,4.97203535]
[1749177653559,38.91711092,145.91,145.84,4.97203535]
[1749177653854,38.91711092,145.91,145.88,4.97203535]
[1749177654055,45.76841092,145.91,145.88,4.97203535]
[1749177654261,38.91711092,145.91,145.83,36.18]
[1749177654564,0.04453092,145.88,145.86,0.05262913]
[1749177654762,6.89703092,145.88,145.86,0.05262913]
[1749177655865,6.853,145.87,145.86,0.05262913]
[1749177658171,6.89723092,145.88,145.86,0.05262913]
[1749177658665,0.04453092,145.88,145.86,0.05262913]
[1749177658863,6.853,145.87,145.86,0.05262913]
[1749177660863,43.033,145.87,145.86,0.05262913]
[1749177662372,47.17196414,145.87,145.8,4.97203535]
[1749177662573,4.97203535,145.86,145.8,4.97203535]
[1749177662876,38.4086,145.87,145.82,4.97203535]
[1749177663170,38.4086,145.87,145.82,6.8549]
[1749177663372,6.90615375,145.86,145.83,0.04624061]
[1749177663561,0.05265375,145.86,145.83,0.04624061]
[1749177664476,0.05265375,145.86,145.83,6.90084061]
[1749177664869,6.90615375,145.86,145.83,6.90084061]
[1749177665776,0.05265375,145.86,145.83,6.90084061]
[1749177666068,0.05265375,145.86,145.83,0.04624061]
[1749177666271,6.90615375,145.86,145.83,0.04624061]